Workbook

Sheet Cover
A3: Navigator
C5: =Client_Name -> SumProduct
C6: =Model_Name -> SP Go Poisson.xlsm
C14: Primary Developer: Cecile Nguyen
C16: General Cover Notes:
C17: PoissonInverse User-Defined Function created. Simulation example of Poisson distributed variable
C21: Any queries, please e-mail: | G21: cecile.nguyen@sumproduct.com
C22: Website: | G22: www.sumproduct.com

Sheet Navigator
A1: Navigator
A2: =Model_Name -> SP Go Poisson.xlsm
A3: Navigator
E4: Error Checks: | G4: =Overall_Error_Check -> 0
B7: 1 | C7: Table of Contents
F9: Cover
F10: Style Guide
F11: Model Parameters
F12: Poisson Distribution
F13: Simulation
F14: Timing
F15: Error Checks
F16: Change Log

Sheet Style Guide
A1: =IF(ISERROR(RIGHT(CELL("filename",A1),LEN(CELL("filename",A1))-FIND("]",CELL("filename",A1)))), "", RIGHT(CELL("filename",A1),LEN(CELL("filename",A1))-FIND("]",CELL("filename",A1)))) -> Style Guide
A2: =Model_Name -> SP Go Poisson.xlsm
A3: Navigator
E4: Error Checks: | I4: =Overall_Error_Check -> 0
B6: =MAX($B$5:$B5)+1 -> 1 | C6: Formatting of Headers / Dividers
C8: Description | I8: Display | K8: Style Name
C10: Sheet Title | I10: =C10 -> Sheet Title | K10: Sheet Title
C11: Model Name | I11: =C11 -> Model Name | K11: Model Name
C13: Header 1 | I13: =C13 -> Header 1 | K13: Header 1
C14: Header 2 | I14: =C14 -> Header 2 | K14: Header 2
C15: Header 3 | I15: =C15 -> Header 3 | K15: Header 3
C16: Header 4 | I16: =C16 -> Header 4 | K16: Header 4
C18: Notes | I18: =C18 -> Notes | K18: Notes
C20: Table Heading | I20: =C20 -> Table Heading | K20: Table Heading
B23: =MAX($B$5:$B22)+1 -> 2 | C23: Individual Cell Styles
C25: Description | I25: Display | K25: Style Name
C27: Assumption | I27: Assumption | K27: =C27 -> Assumption
C29: Constraint | I29: =C29 -> Constraint | K29: =C29 -> Constraint
C31: Empty | K31: =C31 -> Empty
C33: Error Check | I33: 0 | K33: =C33 -> Error Check
C35: Hyperlink | I35: Hyperlink | K35: =C35 -> Hyperlink
C37: Internal Reference | I37: ='Error Checks'!E12 -> Example | K37: =C37 -> Internal Reference
C39: Line Calculation | I39: 77 | K39: Line Calc
C41: Line Total | I41: =I39 -> 77 | K41: =C41 -> Line Total
C43: Parameter | I43: 365 | K43: =C43 -> Parameter
C45: Range Name Description | I45: Not_Named | K45: =C45 -> Range Name Description
C47: Row Reference | I47: =ROW(C47) -> 47 | K47: Row Ref
C49: Row Summary | I49: =I41 -> 77 | K49: =C49 -> Row Summary
C51: Units | I51: A$ | K51: =C51 -> Units
C53: WIP | K53: =C53 -> WIP
B56: =MAX($B$5:$B55)+1 -> 3 | C56: Numerical Styles
C58: Description | I58: Display | K58: Style Name
C60: Comma | I60: 123456.789 | K60: =C60 -> Comma
C62: Comma [0] | I62: -123456.789 | K62: Comma [0]
C64: Currency | I64: 123456.789 | K64: Currency
C66: Currency [0] | I66: 123456.789 | K66: Currency [0]
C68: Date | I68: =TODAY() -> 2018-01-30 | K68: =C68 -> Date
C70: Date Heading | I70: =TODAY() -> 2018-01-30 | K70: =C70 -> Date Heading
C72: Numbers 0 | I72: -123456.789 | K72: =C72 -> Numbers 0
C74: Percent | I74: 0.5 | K74: =C74 -> Percent

Sheet Model Parameters
A1: =IF(ISERROR(RIGHT(CELL("filename",A1),LEN(CELL("filename",A1))-FIND("]",CELL("filename",A1)))), "", RIGHT(CELL("filename",A1),LEN(CELL("filename",A1))-FIND("]",CELL("filename",A1)))) -> Model Parameters
A2: =Model_Name -> SP Go Poisson.xlsm
A3: Navigator
E4: Error Checks: | I4: =Overall_Error_Check -> 0
B6: =MAX($B$5:$B5)+1 -> 1 | C6: General
C8: Key Inputs
E10: General
E11: Model Name | G11: =IF(ISERROR(OR(FIND("[",CELL("filename",A1)),FIND("]",CELL("filename",A1)))),"",MID(CELL("filename",A1),FIND("[",CELL("filename",A1))+1,FIND("]",CELL("filename",A1))-FIND("[",CELL("filename",A1))-1)) -> SP Go Poisson.xlsm
E12: Client Name | G12: SumProduct
B15: =MAX($B$5:$B14)+1 -> 2 | C15: General Range Names
C17: Technical Assumptions
E19: Days in Year | G19: 365
E20: Months in Month | G20: 1
E21: Months in Quarter | G21: 3
E22: Months in Half Yr | G22: 6
E23: Months in Year | G23: 12
E24: Quarters in Year | G24: 4
E26: Rounding Accuracy | G26: 5
E28: Very Large Number | G28: 1e+99
E29: Very Small Number | G29: 1e-08
E31: Thousand | G31: 1000

Sheet Poisson Distribution
A1: =IF(ISERROR(RIGHT(CELL("filename",A1),LEN(CELL("filename",A1))-FIND("]",CELL("filename",A1)))), "", RIGHT(CELL("filename",A1),LEN(CELL("filename",A1))-FIND("]",CELL("filename",A1)))) -> Poisson Distribution
A2: =Model_Name -> SP Go Poisson.xlsm
A3: Navigator
E4: Error Checks: | I4: =Overall_Error_Check -> 0
B6: =MAX($B$5:$B5)+1 -> 1 | C6: Poisson Distribution
C9: Assumption
F11: Mean (λ) | G11: 4
C13: Calculations
F16: Value | G16: Cumulative Probability
F17: =IF(ISNUMBER(F16),F16+1,0) -> 0 | G17: =_xlfn.POISSON.DIST(F17,Lambda,TRUE) -> 0.01831563889
F18: 1 | G18: 0.09157819444
F19: 2 | G19: 0.2381033056
F20: 3 | G20: 0.4334701204
F21: 4 | G21: 0.6288369352
F22: 5 | G22: 0.785130387
F23: 6 | G23: 0.8893260216
F24: 7 | G24: 0.9488663842
F25: 8 | G25: 0.9786365655
F26: 9 | G26: 0.9918677572
F27: 10 | G27: 0.9971602339
F28: 11 | G28: 0.9990847709
F29: 12 | G29: 0.9997262832
F30: 13 | G30: 0.9999236716
F31: 14 | G31: 0.9999800683
F32: 15 | G32: 0.9999951074
F33: 16 | G33: 0.9999988672
F34: 17 | G34: 0.9999997518
F35: 18 | G35: 0.9999999484
F36: 19 | G36: 0.9999999898
F37: 20 | G37: 0.9999999981
F38: 21 | G38: 0.9999999997
F39: 22 | G39: 0.9999999999
F40: 23 | G40: 1
F41: 24 | G41: 1
F42: 25 | G42: 1

Sheet Simulation
A1: =IF(ISERROR(RIGHT(CELL("filename",A1),LEN(CELL("filename",A1))-FIND("]",CELL("filename",A1)))), "", RIGHT(CELL("filename",A1),LEN(CELL("filename",A1))-FIND("]",CELL("filename",A1)))) -> Simulation
A2: =Model_Name -> SP Go Poisson.xlsm
A3: Navigator
E4: Error Checks: | I4: =Overall_Error_Check -> 0
B6: =MAX($B$5:$B5)+1 -> 1 | C6: Simulation Example
C9: Assumption
F11: Average Fish Caught Per Day | G11: 4
C13: Calculations
E15: Simulation
F17: Day | G17: Fish Caught
F18: =N(F17)+1 -> 1 | G18: =PoissonInverse(RAND(),Lambda_Simulation) -> 6
F19: =N(F18)+1 -> 2 | G19: =PoissonInverse(RAND(),Lambda_Simulation) -> 7
F20: 3 | G20: =PoissonInverse(RAND(),Lambda_Simulation) -> 4
F21: 4 | G21: =PoissonInverse(RAND(),Lambda_Simulation) -> 4
F22: 5 | G22: =PoissonInverse(RAND(),Lambda_Simulation) -> 4
F23: 6 | G23: =PoissonInverse(RAND(),Lambda_Simulation) -> 3
F24: 7 | G24: =PoissonInverse(RAND(),Lambda_Simulation) -> 2
F25: 8 | G25: =PoissonInverse(RAND(),Lambda_Simulation) -> 1
F26: 9 | G26: =PoissonInverse(RAND(),Lambda_Simulation) -> 6
F27: 10 | G27: =PoissonInverse(RAND(),Lambda_Simulation) -> 5
F28: 11 | G28: =PoissonInverse(RAND(),Lambda_Simulation) -> 5
F29: 12 | G29: =PoissonInverse(RAND(),Lambda_Simulation) -> 10
F30: 13 | G30: =PoissonInverse(RAND(),Lambda_Simulation) -> 3
F31: 14 | G31: =PoissonInverse(RAND(),Lambda_Simulation) -> 3
F32: 15 | G32: =PoissonInverse(RAND(),Lambda_Simulation) -> 4
F33: 16 | G33: =PoissonInverse(RAND(),Lambda_Simulation) -> 7
F34: 17 | G34: =PoissonInverse(RAND(),Lambda_Simulation) -> 6
F35: 18 | G35: =PoissonInverse(RAND(),Lambda_Simulation) -> 5
F36: 19 | G36: =PoissonInverse(RAND(),Lambda_Simulation) -> 6
F37: 20 | G37: =PoissonInverse(RAND(),Lambda_Simulation) -> 7
F38: 21 | G38: =PoissonInverse(RAND(),Lambda_Simulation) -> 5
F39: 22 | G39: =PoissonInverse(RAND(),Lambda_Simulation) -> 3
F40: 23 | G40: =PoissonInverse(RAND(),Lambda_Simulation) -> 1
F41: 24 | G41: =PoissonInverse(RAND(),Lambda_Simulation) -> 2
F42: 25 | G42: =PoissonInverse(RAND(),Lambda_Simulation) -> 2
F43: 26 | G43: =PoissonInverse(RAND(),Lambda_Simulation) -> 5
F44: 27 | G44: =PoissonInverse(RAND(),Lambda_Simulation) -> 3
F45: 28 | G45: =PoissonInverse(RAND(),Lambda_Simulation) -> 6
F46: 29 | G46: =PoissonInverse(RAND(),Lambda_Simulation) -> 3
F47: 30 | G47: =PoissonInverse(RAND(),Lambda_Simulation) -> 1
F48: 31 | G48: =PoissonInverse(RAND(),Lambda_Simulation) -> 2
F49: 32 | G49: =PoissonInverse(RAND(),Lambda_Simulation) -> 2
F50: 33 | G50: =PoissonInverse(RAND(),Lambda_Simulation) -> 2
F51: 34 | G51: =PoissonInverse(RAND(),Lambda_Simulation) -> 3
F52: 35 | G52: =PoissonInverse(RAND(),Lambda_Simulation) -> 2
F53: 36 | G53: =PoissonInverse(RAND(),Lambda_Simulation) -> 8
F54: 37 | G54: =PoissonInverse(RAND(),Lambda_Simulation) -> 3
F55: 38 | G55: =PoissonInverse(RAND(),Lambda_Simulation) -> 4
F56: 39 | G56: =PoissonInverse(RAND(),Lambda_Simulation) -> 8
F57: 40 | G57: =PoissonInverse(RAND(),Lambda_Simulation) -> 5
F58: 41 | G58: =PoissonInverse(RAND(),Lambda_Simulation) -> 7
F59: 42 | G59: =PoissonInverse(RAND(),Lambda_Simulation) -> 3
F60: 43 | G60: =PoissonInverse(RAND(),Lambda_Simulation) -> 3
F61: 44 | G61: =PoissonInverse(RAND(),Lambda_Simulation) -> 3
F62: 45 | G62: =PoissonInverse(RAND(),Lambda_Simulation) -> 6
F63: 46 | G63: =PoissonInverse(RAND(),Lambda_Simulation) -> 5
F64: 47 | G64: =PoissonInverse(RAND(),Lambda_Simulation) -> 7
F65: 48 | G65: =PoissonInverse(RAND(),Lambda_Simulation) -> 5
F66: 49 | G66: =PoissonInverse(RAND(),Lambda_Simulation) -> 4
F67: 50 | G67: =PoissonInverse(RAND(),Lambda_Simulation) -> 7
F68: 51 | G68: =PoissonInverse(RAND(),Lambda_Simulation) -> 3
F69: 52 | G69: =PoissonInverse(RAND(),Lambda_Simulation) -> 2
F70: 53 | G70: =PoissonInverse(RAND(),Lambda_Simulation) -> 11
F71: 54 | G71: =PoissonInverse(RAND(),Lambda_Simulation) -> 2
F72: 55 | G72: =PoissonInverse(RAND(),Lambda_Simulation) -> 2
F73: 56 | G73: =PoissonInverse(RAND(),Lambda_Simulation) -> 4
F74: 57 | G74: =PoissonInverse(RAND(),Lambda_Simulation) -> 5
F75: 58 | G75: =PoissonInverse(RAND(),Lambda_Simulation) -> 5
F76: 59 | G76: =PoissonInverse(RAND(),Lambda_Simulation) -> 4
F77: 60 | G77: =PoissonInverse(RAND(),Lambda_Simulation) -> 3
F78: 61 | G78: =PoissonInverse(RAND(),Lambda_Simulation) -> 5
F79: 62 | G79: =PoissonInverse(RAND(),Lambda_Simulation) -> 4
F80: 63 | G80: =PoissonInverse(RAND(),Lambda_Simulation) -> 2
F81: 64 | G81: =PoissonInverse(RAND(),Lambda_Simulation) -> 1
F82: 65 | G82: =PoissonInverse(RAND(),Lambda_Simulation) -> 2
F83: =N(F82)+1 -> 66 | G83: =PoissonInverse(RAND(),Lambda_Simulation) -> 9
F84: 67 | G84: =PoissonInverse(RAND(),Lambda_Simulation) -> 2
F85: 68 | G85: =PoissonInverse(RAND(),Lambda_Simulation) -> 4
F86: 69 | G86: =PoissonInverse(RAND(),Lambda_Simulation) -> 2
F87: 70 | G87: =PoissonInverse(RAND(),Lambda_Simulation) -> 5
F88: 71 | G88: =PoissonInverse(RAND(),Lambda_Simulation) -> 3
F89: 72 | G89: =PoissonInverse(RAND(),Lambda_Simulation) -> 4
F90: 73 | G90: =PoissonInverse(RAND(),Lambda_Simulation) -> 2
F91: 74 | G91: =PoissonInverse(RAND(),Lambda_Simulation) -> 3
F92: 75 | G92: =PoissonInverse(RAND(),Lambda_Simulation) -> 4
F93: 76 | G93: =PoissonInverse(RAND(),Lambda_Simulation) -> 0
F94: 77 | G94: =PoissonInverse(RAND(),Lambda_Simulation) -> 3
F95: 78 | G95: =PoissonInverse(RAND(),Lambda_Simulation) -> 4
F96: 79 | G96: =PoissonInverse(RAND(),Lambda_Simulation) -> 5
F97: 80 | G97: =PoissonInverse(RAND(),Lambda_Simulation) -> 3
F98: 81 | G98: =PoissonInverse(RAND(),Lambda_Simulation) -> 2
F99: 82 | G99: =PoissonInverse(RAND(),Lambda_Simulation) -> 3
F100: 83 | G100: =PoissonInverse(RAND(),Lambda_Simulation) -> 2
F101: 84 | G101: =PoissonInverse(RAND(),Lambda_Simulation) -> 4
F102: 85 | G102: =PoissonInverse(RAND(),Lambda_Simulation) -> 2
F103: 86 | G103: =PoissonInverse(RAND(),Lambda_Simulation) -> 2
F104: 87 | G104: =PoissonInverse(RAND(),Lambda_Simulation) -> 6
F105: 88 | G105: =PoissonInverse(RAND(),Lambda_Simulation) -> 3
F106: 89 | G106: =PoissonInverse(RAND(),Lambda_Simulation) -> 3
F107: 90 | G107: =PoissonInverse(RAND(),Lambda_Simulation) -> 2
F108: 91 | G108: =PoissonInverse(RAND(),Lambda_Simulation) -> 2
F109: 92 | G109: =PoissonInverse(RAND(),Lambda_Simulation) -> 5
F110: 93 | G110: =PoissonInverse(RAND(),Lambda_Simulation) -> 3
F111: 94 | G111: =PoissonInverse(RAND(),Lambda_Simulation) -> 3
F112: 95 | G112: =PoissonInverse(RAND(),Lambda_Simulation) -> 3
F113: 96 | G113: =PoissonInverse(RAND(),Lambda_Simulation) -> 1
F114: 97 | G114: =PoissonInverse(RAND(),Lambda_Simulation) -> 7
F115: 98 | G115: =PoissonInverse(RAND(),Lambda_Simulation) -> 3
F116: 99 | G116: =PoissonInverse(RAND(),Lambda_Simulation) -> 2
F117: 100 | G117: =PoissonInverse(RAND(),Lambda_Simulation) -> 5
F118: 101 | G118: =PoissonInverse(RAND(),Lambda_Simulation) -> 2
F119: 102 | G119: =PoissonInverse(RAND(),Lambda_Simulation) -> 1
F120: 103 | G120: =PoissonInverse(RAND(),Lambda_Simulation) -> 3
F121: 104 | G121: =PoissonInverse(RAND(),Lambda_Simulation) -> 6
F122: 105 | G122: =PoissonInverse(RAND(),Lambda_Simulation) -> 4
F123: 106 | G123: =PoissonInverse(RAND(),Lambda_Simulation) -> 4
F124: 107 | G124: =PoissonInverse(RAND(),Lambda_Simulation) -> 2
F125: 108 | G125: =PoissonInverse(RAND(),Lambda_Simulation) -> 6
F126: 109 | G126: =PoissonInverse(RAND(),Lambda_Simulation) -> 1
F127: 110 | G127: =PoissonInverse(RAND(),Lambda_Simulation) -> 4
F128: 111 | G128: =PoissonInverse(RAND(),Lambda_Simulation) -> 2
F129: 112 | G129: =PoissonInverse(RAND(),Lambda_Simulation) -> 5
F130: 113 | G130: =PoissonInverse(RAND(),Lambda_Simulation) -> 1
F131: 114 | G131: =PoissonInverse(RAND(),Lambda_Simulation) -> 1 | L131: =4/L132 -> 222.8818317
F132: 115 | G132: =PoissonInverse(RAND(),Lambda_Simulation) -> 1 | L132: 0.01794672975
F133: 116 | G133: =PoissonInverse(RAND(),Lambda_Simulation) -> 3
F134: 117 | G134: =PoissonInverse(RAND(),Lambda_Simulation) -> 1 | L134: =_xlfn.BINOM.INV(L131,4/L131,L132) -> 1
F135: 118 | G135: =PoissonInverse(RAND(),Lambda_Simulation) -> 5
F136: 119 | G136: =PoissonInverse(RAND(),Lambda_Simulation) -> 3
F137: 120 | G137: =PoissonInverse(RAND(),Lambda_Simulation) -> 4
F138: 121 | G138: =PoissonInverse(RAND(),Lambda_Simulation) -> 5
F139: 122 | G139: =PoissonInverse(RAND(),Lambda_Simulation) -> 5
F140: 123 | G140: =PoissonInverse(RAND(),Lambda_Simulation) -> 1
F141: 124 | G141: =PoissonInverse(RAND(),Lambda_Simulation) -> 4
F142: 125 | G142: =PoissonInverse(RAND(),Lambda_Simulation) -> 9
F143: 126 | G143: =PoissonInverse(RAND(),Lambda_Simulation) -> 1
F144: 127 | G144: =PoissonInverse(RAND(),Lambda_Simulation) -> 8
F145: 128 | G145: =PoissonInverse(RAND(),Lambda_Simulation) -> 2
F146: 129 | G146: =PoissonInverse(RAND(),Lambda_Simulation) -> 4
F147: =N(F146)+1 -> 130 | G147: =PoissonInverse(RAND(),Lambda_Simulation) -> 5
F148: 131 | G148: =PoissonInverse(RAND(),Lambda_Simulation) -> 2
F149: 132 | G149: =PoissonInverse(RAND(),Lambda_Simulation) -> 3
F150: 133 | G150: =PoissonInverse(RAND(),Lambda_Simulation) -> 6
F151: 134 | G151: =PoissonInverse(RAND(),Lambda_Simulation) -> 5
F152: 135 | G152: =PoissonInverse(RAND(),Lambda_Simulation) -> 5
F153: 136 | G153: =PoissonInverse(RAND(),Lambda_Simulation) -> 3
F154: 137 | G154: =PoissonInverse(RAND(),Lambda_Simulation) -> 5
F155: 138 | G155: =PoissonInverse(RAND(),Lambda_Simulation) -> 7
F156: 139 | G156: =PoissonInverse(RAND(),Lambda_Simulation) -> 4
F157: 140 | G157: =PoissonInverse(RAND(),Lambda_Simulation) -> 4
F158: 141 | G158: =PoissonInverse(RAND(),Lambda_Simulation) -> 3
F159: 142 | G159: =PoissonInverse(RAND(),Lambda_Simulation) -> 4
F160: 143 | G160: =PoissonInverse(RAND(),Lambda_Simulation) -> 1
F161: 144 | G161: =PoissonInverse(RAND(),Lambda_Simulation) -> 10
F162: 145 | G162: =PoissonInverse(RAND(),Lambda_Simulation) -> 4
F163: 146 | G163: =PoissonInverse(RAND(),Lambda_Simulation) -> 4
F164: 147 | G164: =PoissonInverse(RAND(),Lambda_Simulation) -> 2
F165: 148 | G165: =PoissonInverse(RAND(),Lambda_Simulation) -> 1
F166: 149 | G166: =PoissonInverse(RAND(),Lambda_Simulation) -> 1
F167: 150 | G167: =PoissonInverse(RAND(),Lambda_Simulation) -> 1
F168: 151 | G168: =PoissonInverse(RAND(),Lambda_Simulation) -> 5
F169: 152 | G169: =PoissonInverse(RAND(),Lambda_Simulation) -> 4
F170: 153 | G170: =PoissonInverse(RAND(),Lambda_Simulation) -> 6
F171: 154 | G171: =PoissonInverse(RAND(),Lambda_Simulation) -> 1
F172: 155 | G172: =PoissonInverse(RAND(),Lambda_Simulation) -> 4
F173: 156 | G173: =PoissonInverse(RAND(),Lambda_Simulation) -> 5
F174: 157 | G174: =PoissonInverse(RAND(),Lambda_Simulation) -> 6
F175: 158 | G175: =PoissonInverse(RAND(),Lambda_Simulation) -> 5
F176: 159 | G176: =PoissonInverse(RAND(),Lambda_Simulation) -> 3
F177: 160 | G177: =PoissonInverse(RAND(),Lambda_Simulation) -> 6
F178: 161 | G178: =PoissonInverse(RAND(),Lambda_Simulation) -> 6
F179: 162 | G179: =PoissonInverse(RAND(),Lambda_Simulation) -> 5
F180: 163 | G180: =PoissonInverse(RAND(),Lambda_Simulation) -> 5
F181: 164 | G181: =PoissonInverse(RAND(),Lambda_Simulation) -> 4
F182: 165 | G182: =PoissonInverse(RAND(),Lambda_Simulation) -> 6
F183: 166 | G183: =PoissonInverse(RAND(),Lambda_Simulation) -> 9
F184: 167 | G184: =PoissonInverse(RAND(),Lambda_Simulation) -> 7
F185: 168 | G185: =PoissonInverse(RAND(),Lambda_Simulation) -> 3
F186: 169 | G186: =PoissonInverse(RAND(),Lambda_Simulation) -> 2
F187: 170 | G187: =PoissonInverse(RAND(),Lambda_Simulation) -> 9
F188: 171 | G188: =PoissonInverse(RAND(),Lambda_Simulation) -> 7
F189: 172 | G189: =PoissonInverse(RAND(),Lambda_Simulation) -> 6
F190: 173 | G190: =PoissonInverse(RAND(),Lambda_Simulation) -> 1
F191: 174 | G191: =PoissonInverse(RAND(),Lambda_Simulation) -> 5
F192: 175 | G192: =PoissonInverse(RAND(),Lambda_Simulation) -> 6
F193: 176 | G193: =PoissonInverse(RAND(),Lambda_Simulation) -> 7
F194: 177 | G194: =PoissonInverse(RAND(),Lambda_Simulation) -> 5
F195: 178 | G195: =PoissonInverse(RAND(),Lambda_Simulation) -> 7
F196: 179 | G196: =PoissonInverse(RAND(),Lambda_Simulation) -> 1
F197: 180 | G197: =PoissonInverse(RAND(),Lambda_Simulation) -> 5
F198: 181 | G198: =PoissonInverse(RAND(),Lambda_Simulation) -> 3
F199: 182 | G199: =PoissonInverse(RAND(),Lambda_Simulation) -> 7
F200: 183 | G200: =PoissonInverse(RAND(),Lambda_Simulation) -> 3
F201: 184 | G201: =PoissonInverse(RAND(),Lambda_Simulation) -> 1
F202: 185 | G202: =PoissonInverse(RAND(),Lambda_Simulation) -> 2
F203: 186 | G203: =PoissonInverse(RAND(),Lambda_Simulation) -> 5
F204: 187 | G204: =PoissonInverse(RAND(),Lambda_Simulation) -> 4
F205: 188 | G205: =PoissonInverse(RAND(),Lambda_Simulation) -> 7
F206: 189 | G206: =PoissonInverse(RAND(),Lambda_Simulation) -> 2
F207: 190 | G207: =PoissonInverse(RAND(),Lambda_Simulation) -> 7
... 836 more rows

Sheet Timing
A1: =IF(ISERROR(RIGHT(CELL("filename",A1),LEN(CELL("filename",A1))-FIND("]",CELL("filename",A1)))), "", RIGHT(CELL("filename",A1),LEN(CELL("filename",A1))-FIND("]",CELL("filename",A1)))) -> Timing
A2: =Model_Name -> SP Go Poisson.xlsm
A3: Navigator
B4: Error Checks: | F4: =Overall_Error_Check -> 0
J5: =J$7 -> 2018-03-31 | K5: =K$7 -> 2018-06-30 | L5: =L$7 -> 2018-09-30 | M5: =M$7 -> 2018-12-31 | N5: =N$7 -> 2019-03-31
C6: Start Date | J6: =IF(J$9=1,Model_Start_Date,I$7+1) -> 2018-01-30 | K6: =IF(K$9=1,Model_Start_Date,J$7+1) -> 2018-04-01 | L6: =IF(L$9=1,Model_Start_Date,K$7+1) -> 2018-07-01 | M6: =IF(M$9=1,Model_Start_Date,L$7+1) -> 2018-10-01 | N6: =IF(N$9=1,Model_Start_Date,M$7+1) -> 2019-01-01
C7: End Date | J7: =EOMONTH(J$6,MOD(Periodicity+Reporting_Month_Factor-MONTH(J$6),Periodicity)) -> 2018-03-31 | K7: =EOMONTH(K$6,MOD(Periodicity+Reporting_Month_Factor-MONTH(K$6),Periodicity)) -> 2018-06-30 | L7: =EOMONTH(L$6,MOD(Periodicity+Reporting_Month_Factor-MONTH(L$6),Periodicity)) -> 2018-09-30 | M7: =EOMONTH(M$6,MOD(Periodicity+Reporting_Month_Factor-MONTH(M$6),Periodicity)) -> 2018-12-31 | N7: =EOMONTH(N$6,MOD(Periodicity+Reporting_Month_Factor-MONTH(N$6),Periodicity)) -> 2019-03-31
C8: Number of Days | J8: =J7-J6+1 -> 61 | K8: =K7-K6+1 -> 91 | L8: =L7-L6+1 -> 92 | M8: =M7-M6+1 -> 92 | N8: =N7-N6+1 -> 90
C9: Counter | J9: =N(I$9)+1 -> 1 | K9: =N(J$9)+1 -> 2 | L9: =N(K$9)+1 -> 3 | M9: =N(L$9)+1 -> 4 | N9: =N(M$9)+1 -> 5
B11: =MAX($B$10:$B10)+1 -> 1 | C11: Timing Assumptions
C13: Data (do not change once modelling has commenced)
D15: Model Start Date | H15: =TODAY() -> 2018-01-30
D17: Number of Months in a Full Period | H17: 3
D19: Example Reporting Month | H19: 12 | I19: ="e.g. "&TEXT(DATE(YEAR(Model_Start_Date)+IF(Example_Reporting_Month<MONTH(Model_Start_Date),1,0),Example_Reporting_Month+1,1)-1,"dd-Mmm-yy") -> e.g. 31-Dec-18
D21: Reporting Month Factor | H21: =MOD(Example_Reporting_Month-1,Periodicity)+1 -> 3
D23: Months per Year | H23: 12

Sheet Error Checks
A1: =IF(ISERROR(RIGHT(CELL("filename",A1),LEN(CELL("filename",A1))-FIND("]",CELL("filename",A1)))), "", RIGHT(CELL("filename",A1),LEN(CELL("filename",A1))-FIND("]",CELL("filename",A1)))) -> Error Checks
A2: =Model_Name -> SP Go Poisson.xlsm
A3: Navigator
B4: Error Checks: | F4: =Overall_Error_Check -> 0
B6: =MAX($B$5:$B5)+1 -> 1 | C6: Error Checks
C8: Summary of Errors
D10: Assumptions
E12: Example
E17: =C8 -> Summary of Errors | I17: =MIN(1,SUM(I11:I15)) -> 0

Sheet Change Log
A1: =IF(ISERROR(RIGHT(CELL("filename",A1),LEN(CELL("filename",A1))-FIND("]",CELL("filename",A1)))), "", RIGHT(CELL("filename",A1),LEN(CELL("filename",A1))-FIND("]",CELL("filename",A1)))) -> Change Log
A2: =Model_Name -> SP Go Poisson.xlsm
A3: Navigator
B4: Error Checks: | F4: =Overall_Error_Check -> 0
B6: =MAX($B$5:$B5)+1 -> 1 | C6: =A1 -> Change Log
C8: Summary
F10: Date | G10: Model Version | H10: Details of change | I10: Worksheet Reference | J10: Row, column, cell reference | K10: Author
F11: 2018-01-30 | G11: SP Go Poisson.xlsm | H11: Added Poisson Inverse Macro | I11: Module 1 | K11: CN
F12: 2018-01-30 | G12: SP Go Poisson.xlsm | H12: Show how Poisson.Dist calculates | I12: Poisson Distribution | K12: CN
F13: 2018-01-30 | G13: SP Go Poisson.xlsm | H13: Simulation Example Created | I13: Simulation | K13: CN
